bitfinex/quotes_SOLUSD_20250708
["timestamp","ask_amount","ask_price","bid_price","bid_amount"]
[1752003793002,5.84324482,151.75,151.74,0.03]
[1752003794232,12.43303065,151.75,151.74,0.03]
[1752003796034,6.58978583,151.75,151.74,0.03]
[1752003797719,6.58978583,151.75,151.74,5.87324482]
[1752003798120,6.5893516,151.76,151.74,0.03]
[1752003798963,154.08905565,151.77,151.75,5.84324482]
[1752003799241,6.58905565,151.77,151.75,5.84324482]
[1752003800440,6.58804927,151.79,151.75,5.84324482]
[1752003800647,12.43129409,151.79,151.75,5.84324482]
[1752003801642,6.58804927,151.79,151.76,5.84324482]
[1752003802119,6.58804927,151.79,151.76,39.62324482]
[1752003802517,6.58804927,151.79,151.77,5.84324482]
[1752003803832,6.58761528,151.8,151.77,5.84324482]
[1752003812660,6.58761528,151.8,151.78,5.84324482]
[1752003813028,6.58761528,151.8,151.78,3.73708269]
[1752003813443,4.85706003,151.79,151.78,3.73708269]
[1752003814251,6.64738144,151.81,151.78,3.73708269]
[1752003814448,4.85731924,151.8,151.78,3.73708269]
[1752003814753,6.64738144,151.81,151.78,3.73708269]
[1752003814961,4.85732071,151.8,151.78,3.73708269]
[1752003815251,6.64738144,151.81,151.78,3.73708269]
[1752003815451,4.85745679,151.8,151.79,3.73708269]
[1752003815834,0.06,151.81,151.79,3.73708269]
[1752003816038,0.06,151.81,151.8,37.49708269]
[1752003816342,4.9177462,151.81,151.8,37.49708269]
[1752003816546,4.91751933,151.81,151.8,37.49708269]
[1752003817143,4.91751933,151.81,151.8,33.76]
[1752003817342,4.91751933,151.81,151.8,37.49708269]
[1752003818844,0.06,151.81,151.8,33.76]
[1752003819045,0.06,151.81,151.8,39.59637714]
[1752003819459,0.06,151.81,151.8,33.76]
[1752003819657,0.06,151.81,151.8,39.59637714]
[1752003824650,0.06,151.81,151.8,39.57637714]
[1752003825443,0.06,151.81,151.8,5.83637714]
[1752003825645,0.06,151.81,151.8,39.57637714]
[1752003826772,0.06,151.81,151.8,5.83637714]
[1752003826963,0.06,151.81,151.8,39.57637714]
[1752003840969,0.06,151.81,151.8,37.47585645]
[1752003843960,0.06,151.81,151.8,33.74]
[1752003844166,0.06,151.81,151.8,37.47585645]
[1752003845254,8.65539003,151.81,151.74,0.03]
[1752003845457,4.85953358,151.8,151.76,29.73585645]
[1752003845762,4.85953358,151.79,151.77,33.72]
[1752003845961,3.79585645,151.81,151.77,33.72]
[1752003846165,11.44654619,151.8,151.77,33.72]
[1752003846478,4.8587968,151.79,151.77,33.72]
[1752003846665,6.58774939,151.8,151.77,33.72]
[1752003846865,4.85987863,151.79,151.77,33.72]
[1752003847063,10.32360584,151.8,151.77,33.72]
[1752003847382,8.59589643,151.79,151.74,36.35587675]
[1752003847578,4.86003998,151.78,151.75,33.72]
[1752003847783,3.73585645,151.79,151.75,33.72]
[1752003847971,4.86050758,151.78,151.75,33.72]
[1752003848175,4.86050758,151.77,151.75,33.72]
[1752003848478,4.86050758,151.76,151.74,36.35587675]
[1752003848677,6.58851324,151.78,151.75,33.72]
[1752003849563,6.58851324,151.78,151.75,37.45585645]
[1752003849883,6.58851324,151.78,151.75,3.73585645]
[1752003850183,6.58851324,151.78,151.76,4.93435917]
[1752003850382,6.58851324,151.78,151.77,38.65435917]
[1752003850859,3.73585645,151.8,151.77,38.65435917]
[1752003851181,3.73585645,151.8,151.78,4.93435917]
[1752003851382,3.73585645,151.8,151.79,4.93435917]
[1752003851685,10.32347173,151.8,151.79,4.93435917]
[1752003853981,6.58761528,151.8,151.77,33.72]
[1752003854184,6.58761528,151.8,151.78,4.93228425]
[1752003854185,10.32347173,151.8,151.78,4.93228425]
[1752003854485,10.32347173,151.8,151.77,33.72]
[1752003854677,10.32347173,151.8,151.78,4.93201138]
[1752003855287,10.32347173,151.8,151.77,33.72]
[1752003856689,10.32347173,151.8,151.77,33.7]
[1752003856878,10.32347173,151.8,151.76,3.73585645]
[1752003857180,10.32347173,151.8,151.77,33.7]
[1752003863372,3.73585645,151.79,151.75,3.73585645]
[1752003863581,3.73585645,151.79,151.76,33.7]
[1752003863980,6.58761528,151.8,151.78,3.73585645]
[1752003864290,6.58761528,151.8,151.77,3.73585645]
[1752003866588,10.32347173,151.8,151.76,37.43585645]
[1752003868980,10.32347173,151.8,151.76,33.7]
[1752003869286,10.32347173,151.8,151.76,37.43585645]
[1752003869494,9.82347173,151.8,151.76,37.43585645]
[1752003870578,14.82347173,151.8,151.76,37.43585645]
[1752003872001,11.08761528,151.8,151.76,37.43585645]
[1752003872302,11.08761528,151.8,151.77,3.73585645]
[1752003875201,11.08761528,151.8,151.76,33.7]
[1752003875202,5.0,151.8,151.79,3.73585645]
[1752003875686,5.0,151.8,151.79,37.41585645]
[1752003878110,10.0,151.8,151.79,37.41585645]
[1752003881081,10.0,151.8,151.79,33.68]
[1752003881283,16.58761528,151.8,151.79,33.68]
[1752003882189,16.58761528,151.8,151.78,3.73585645]
[1752003882511,20.32347173,151.8,151.77,33.68]
[1752003883790,3.73585645,151.79,151.75,3.73585645]
[1752003884004,3.73585645,151.79,151.76,33.68]
[1752003884515,3.73585645,151.79,151.77,33.68]
[1752003884812,6.58848333,151.78,151.77,33.68]
[1752003885313,6.58848333,151.78,151.76,33.68]
[1752003886896,6.58804927,151.79,151.76,33.66]
[1752003887413,6.58804927,151.79,151.76,39.50130914]
[1752003891809,10.0,151.8,151.78,5.84130914]
[1752003892011,10.0,151.8,151.79,39.50130914]
[1752003893213,10.06,151.8,151.79,39.50130914]
[1752003901230,16.64761528,151.8,151.79,33.66]
[1752003902013,10.06,151.8,151.79,39.50130914]
[1752003902205,10.06,151.8,151.79,33.66]
[1752003902525,10.06,151.8,151.79,39.50130914]
[1752003902899,10.06,151.8,151.79,33.66]
[1752003903106,10.06,151.8,151.79,39.50130914]
[1752003907545,10.06,151.8,151.79,33.66]
[1752003907698,10.06,151.8,151.79,39.50130914]
[1752003908936,10.06,151.8,151.79,37.39594169]
[1752003913131,10.06,151.8,151.79,43.98399096]
[1752003913933,10.06,151.8,151.79,37.39594169]
[1752003914137,10.06,151.8,151.79,37.37594169]
[1752003914316,10.06,151.8,151.79,33.64]
[1752003914523,10.06,151.8,151.79,37.37594169]
[1752003914717,10.06,151.8,151.79,33.64]
[1752003914923,10.06,151.8,151.79,37.37594169]
[1752003920544,10.06,151.8,151.79,37.35594169]
[1752003920922,10.06,151.8,151.79,3.73594169]
[1752003921126,10.06,151.8,151.79,37.35594169]
[1752003927650,10.06,151.8,151.79,43.94399096]
[1752003929031,10.06,151.8,151.79,33.62]
[1752003929230,10.06,151.8,151.79,37.35594169]
[1752003935259,10.06,151.8,151.79,33.62]
[1752003935260,16.64761528,151.8,151.79,33.62]
[1752003935560,10.06,151.8,151.79,37.35594169]
[1752003936537,16.64761528,151.8,151.79,37.35594169]
[1752003936946,10.06,151.8,151.79,37.35594169]
[1752003937143,10.06,151.8,151.79,33.62]
[1752003938491,16.64765697,151.8,151.78,0.03]
[1752003938856,16.64765697,151.8,151.79,33.6]
[1752003939848,16.64765697,151.8,151.78,0.03]
[1752003940047,16.64765697,151.8,151.79,33.6]
[1752003941565,16.64765697,151.8,151.78,3.76594169]
[1752003941769,16.64765697,151.8,151.79,33.6]
[1752003945673,10.06,151.8,151.79,37.33594169]
[1752003948374,10.06,151.8,151.79,43.92399096]
[1752003957078,10.06,151.8,151.79,33.58]
[1752003957283,10.06,151.8,151.79,37.31594169]
[1752003957759,10.06,151.8,151.78,0.03]
[1752003957959,10.06,151.8,151.79,37.31594169]
[1752003959089,10.06,151.8,151.79,43.90399096]
[1752003962878,10.06,151.8,151.79,62.55363982]
[1752003963186,10.06,151.8,151.79,43.90399096]
[1752003964075,10.06,151.8,151.79,10.32399096]
[1752003964277,10.06,151.8,151.79,43.90399096]
[1752003967389,10.06,151.8,151.78,0.03]
[1752003967602,10.06,151.8,151.79,37.31594169]
[1752003970393,10.06,151.8,151.79,33.58]
[1752003970588,10.06,151.8,151.78,0.03]
[1752003970791,16.64776863,151.8,151.78,0.03]
[1752003970975,20.38371032,151.8,151.79,33.58]
[1752003971475,20.38371032,151.8,151.78,0.03]
[1752003971681,3.73594169,151.79,151.78,0.03]
[1752003971981,4.02026483,151.79,151.78,0.03]
[1752003972591,10.6083141,151.79,151.78,0.03]
[1752003973092,18.7190141,151.79,151.78,0.03]
[1752003974489,14.98307241,151.79,151.78,0.03]
[1752003974689,18.7190141,151.79,151.78,0.03]
[1752003974878,37.296949,151.79,151.75,0.03]
[1752003975195,6.12807654,151.76,151.75,0.03]
[1752003976282,11.97182994,151.76,151.75,0.03]
[1752003976597,19.61702994,151.76,151.75,0.03]
[1752003976982,26.20638154,151.76,151.75,0.03]
[1752003979695,20.36262814,151.76,151.75,0.03]
[1752003980201,18.933972,151.75,151.74,0.03]
[1752003980409,24.7777254,151.75,151.74,0.03]
[1752003982102,31.36751123,151.75,151.74,0.03]
[1752003990383,25.52375783,151.75,151.74,0.03]
[1752003990606,31.36751123,151.75,151.74,0.03]
[1752003990805,25.52375783,151.75,151.74,0.03]
[1752003991021,12.43353923,151.75,151.74,0.03]
[1752003991185,6.58978583,151.75,151.74,0.03]
[1752003991512,6.58954113,151.76,151.74,0.03]
[1752003992013,12.43329453,151.76,151.74,0.03]
[1752003992505,6.12807654,151.75,151.74,0.03]
[1752003992806,31.36751123,151.75,151.74,0.03]
[1752003996804,29.26550738,151.75,151.74,0.03]
[1752004001322,25.52375783,151.75,151.74,0.03]
[1752004001506,29.26550738,151.75,151.74,0.03]
[1752004007426,29.26550738,151.75,151.74,1e-08]
[1752004007598,55.26550738,151.75,151.74,1e-08]
[1752004016749,37.50230738,151.75,151.74,1e-08]
[1752004019822,47.50230738,151.75,151.74,1e-08]
[1752004021863,59.64544499,151.75,151.74,1e-08]
[1752004022229,47.50230738,151.75,151.74,1e-08]
[1752004022543,59.70544499,151.75,151.74,1e-08]
[1752004024954,44.64964886,151.68,151.64,1.778902]
[1752004025157,3.74174955,151.65,151.64,1.778902]
[1752004025326,10.33588077,151.65,151.64,1.778902]
[1752004027654,6.59413122,151.65,151.64,1.778902]
[1752004029742,3.74174955,151.66,151.64,1.778902]
[1752004030556,6.87758482,151.67,151.64,1.778902]
[1752004030762,10.33501123,151.67,151.64,1.778902]
[1752004031761,6.59326168,151.67,151.64,1.778902]
[1752004032240,6.59326168,151.67,151.65,3.74174955]
[1752004032436,6.59326168,151.67,151.64,1.778902]
[1752004032641,6.59326168,151.67,151.64,5.52065155]
[1752004034450,6.59301682,151.68,151.64,5.52065155]
[1752004036762,42.47985003,151.71,151.64,5.52065155]
[1752004036966,6.59164353,151.71,151.68,3.74174955]
[1752004037165,6.59125119,151.72,151.7,3.74174955]
[1752004037471,6.59022011,151.74,151.7,3.74174955]
[1752004037639,6.64978583,151.75,151.7,1.6351]
[1752004037839,6.64978583,151.75,151.73,3.74174955]
[1752004038041,0.06,151.75,151.7,1.6351]
[1752004038244,0.06,151.75,151.74,3.74174955]
[1752004038862,0.06,151.75,151.73,3.74174955]
[1752004039060,0.06,151.75,151.74,5.84192821]
[1752004042570,0.06,151.75,151.71,6.5048]
[1752004042747,0.06,151.75,151.72,5.84192821]
[1752004042951,0.06,151.75,151.72,39.38192821]
[1752004043651,0.06,151.75,151.73,5.84192821]
[1752004047871,0.06,151.75,151.72,39.38192821]
[1752004050167,0.06,151.75,151.73,5.84192821]
[1752004058788,0.06,151.75,151.74,33.52]
[1752004063089,0.06,151.75,151.73,3.7391236]
[1752004063288,0.06,151.75,151.74,33.52]
[1752004072569,0.06,151.75,151.74,37.2591236]
[1752004073396,0.06,151.75,151.74,43.84934371]
[1752004084810,0.06,151.75,151.74,63.15801458]
[1752004085405,0.06,151.75,151.74,79.95413212]
[1752004085913,0.06,151.75,151.74,105.95413212]
[1752004086409,0.06,151.75,151.74,194.25413212]
[1752004086698,0.06,151.75,151.74,193.59511011]
[1752004086898,0.06,151.75,151.74,202.17282432]
[1752004088402,1e-08,151.75,151.74,176.17282432]
[1752004088662,1e-08,151.75,151.74,182.49562432]
[1752004089679,1e-08,151.75,151.74,192.49562432]
[1752004090507,10.06,151.8,151.79,0.28432314]
[1752004090803,10.06,151.8,151.79,56.83190052]
[1752004091012,10.06,151.8,151.79,82.83190052]
[1752004091383,0.06,151.81,151.8,18.933972]
[1752004091708,0.06,151.84,151.82,26.0]
[1752004091900,0.06,151.84,151.83,71.10959]
[1752004092106,0.06,151.84,151.83,71.76822136]
[1752004092401,0.06,151.84,151.83,78.354535]
[1752004093015,0.06,151.84,151.83,79.917535]
[1752004093310,0.2,151.9,151.89,5.82935362]
[1752004093523,0.2,151.9,151.89,39.30935362]
[1752004095108,0.2,151.9,151.89,45.89306551]
[1752004095493,0.2,151.9,151.89,40.06371189]
[1752004095713,0.2,151.9,151.89,45.89306551]
[1752004096324,0.2,151.9,151.89,64.82703751]
[1752004098808,0.2,151.9,151.89,31.34703751]
[1752004099123,0.2,151.9,151.89,64.80703751]
[1752004101516,0.2,151.9,151.89,90.80703751]
[1752004102321,0.2,151.9,151.89,91.46540869]
[1752004106712,0.2,151.9,151.89,58.00540869]
[1752004106917,0.2,151.9,151.89,91.46540869]
[1752004110136,0.2,151.9,151.89,57.34703751]
[1752004110305,0.2,151.9,151.89,90.80703751]
[1752004121054,0.2,151.9,151.89,88.70661308]
[1752004126325,0.2,151.9,151.89,89.36498426]
[1752004130560,0.2,151.9,151.89,177.66498426]
[1752004130857,0.2,151.9,151.89,177.00661308]
[1752004136865,0.06,151.91,151.9,0.28432314]
[1752004137050,0.06,151.91,151.9,45.58729693]
[1752004137250,0.06,151.91,151.9,30.67158017]
[1752004138148,0.06,151.91,151.9,55.9045075]
[1752004138344,0.06,151.91,151.9,70.82022426]
[1752004138740,0.06,151.91,151.9,44.82022426]
[1752004140383,0.2,151.93,151.92,63.57861795]
[1752004140578,0.2,151.96,151.95,26.0]
[1752004140874,0.2,151.96,151.95,82.45668927]
[1752004142340,0.2,151.96,151.95,92.34170607]
[1752004143843,0.2,151.96,151.95,97.53766047]
[1752004144045,0.2,151.96,151.95,92.34170607]
[1752004144764,0.2,151.96,151.95,92.62602921]
[1752004144976,1e-08,151.96,151.95,97.93078282]
[1752004145175,1e-08,151.97,151.96,18.64964886]
[1752004145377,1e-08,151.97,151.96,22.37857805]
[1752004146256,1e-08,151.97,151.96,125.87861795]
[1752004146473,1e-08,151.99,151.98,51.22946199]
[1752004146776,1e-08,151.99,151.98,89.03637249]
[1752004147980,1e-08,151.99,151.98,177.33637249]
[1752004148183,1e-08,151.99,151.98,176.67839118]
[1752004148710,0.2,152.06,152.02,26.0]
[1752004148882,0.2,152.06,152.05,5.8161269]
[1752004149088,0.2,152.06,152.05,39.2361269]
[1752004149972,0.2,152.06,152.05,45.81291085]
[1752004150755,0.2,152.06,152.05,39.99678395]
[1752004150957,0.2,152.06,152.05,39.2361269]
[1752004151158,0.2,152.06,152.05,45.81291085]
[1752004153363,0.2,152.06,152.02,26.0]
[1752004153561,6.0161269,152.06,152.03,33.4]
[1752004153761,0.2,152.06,152.03,33.4]
[1752004153983,6.0161269,152.06,152.03,33.4]
[1752004154460,0.2,152.06,152.03,33.4]
[1752004154661,6.0161269,152.06,152.03,33.4]
[1752004155068,0.2,152.06,152.03,45.79371599]
[1752004155802,5.2,152.06,152.03,45.79371599]
[1752004160287,5.2,152.06,152.03,39.97758909]
[1752004160491,5.2,152.06,152.03,45.79371599]
[1752004164281,10.2,152.06,152.03,45.79371599]
[1752004165490,10.2,152.06,152.03,39.97758909]
[1752004165792,10.2,152.06,152.03,45.79371599]
[1752004166681,10.2,152.06,152.03,39.97758909]
[1752004169873,10.2,152.06,152.03,43.70164883]
[1752004170682,10.2,152.06,152.04,3.72405974]
[1752004170878,10.2,152.06,152.05,37.10405974]
[1752004171075,10.2,152.06,152.05,55.7537086]
[1752004171393,10.2,152.06,152.05,82.69571013]
[1752004172198,10.2,152.06,152.05,33.23446234]
[1752004172398,10.2,152.06,152.05,32.57678395]
[1752004172615,10.2,152.06,152.05,69.68084369]
[1752004172781,10.2,152.06,152.05,71.77391836]
[1752004175112,10.2,152.06,152.05,65.95678395]
[1752004177406,10.2,152.06,152.05,71.77391836]
[1752004177594,10.2,152.06,152.05,65.95678395]
[1752004178205,16.01713441,152.06,152.02,5.81713441]
[1752004178382,16.01713441,152.06,152.03,33.38]
[1752004178823,16.01713441,152.06,152.02,32.57772251]
[1752004179106,5.81713441,152.05,152.03,33.38]
[1752004179701,10.2,152.06,152.03,33.38]
[1752004179906,5.81713441,152.05,152.03,33.38]
[1752004180113,5.81713441,152.05,152.04,33.38]
[1752004180486,5.81713441,152.05,152.01,32.57841532]
[1752004180800,5.81713441,152.04,152.02,33.38]
[1752004180994,5.81713441,152.04,152.03,33.38]
[1752004181391,5.81713441,152.04,152.01,32.57841532]
[1752004181591,5.81713441,152.04,152.02,33.38]
[1752004182517,5.81713441,152.04,152.03,33.38]
[1752004184619,12.39435093,152.04,152.03,33.38]
[1752004185093,5.81713441,152.04,152.03,33.38]
[1752004185902,10.67450711,152.04,152.03,33.38]
[1752004186320,5.81713441,152.04,152.03,33.38]
[1752004186521,5.81713441,152.04,152.0,6.57882738]
[1752004186695,5.81713441,152.03,152.01,33.38]
[1752004187203,6.57697706,152.05,152.01,33.38]
[1752004187398,5.81713441,152.03,152.01,33.38]
[1752004192129,5.81713441,152.03,152.0,6.57882738]
[1752004192331,5.81713441,152.03,152.02,33.38]
[1752004197216,5.81713441,152.03,152.0,6.57891804]
[1752004197415,6.57678395,152.05,152.02,33.38]
[1752004197622,5.81713441,152.03,152.02,33.38]
[1752004200219,0.06,152.04,152.02,33.38]
[1752004200720,5.87713441,152.04,152.02,33.38]
[1752004201116,5.81713441,152.03,152.02,33.38]
[1752004201338,5.81713441,152.03,151.99,0.03]
[1752004201651,5.81713441,152.0,151.99,0.03]
[1752004201944,16.49714334,152.0,151.99,0.03]
[1752004202150,23.0760907,152.0,151.99,0.03]
[1752004202951,49.29929085,152.0,151.99,0.03]
[1752004203114,50.92159085,152.0,151.99,0.03]
[1752004203311,32.27194199,152.0,151.99,0.03]
[1752004203508,19.59153708,152.0,151.99,0.03]
[1752004203740,13.77440267,152.0,151.99,0.03]
[1752004203918,18.88125629,152.0,151.99,0.03]
[1752004205343,12.29039254,152.0,151.99,0.03]
[1752004205936,7.43943441,152.0,151.99,0.03]
[1752004206237,14.01838177,152.0,151.99,0.03]
[1752004208728,19.83551618,152.0,151.99,0.03]
[1752004208936,20.11983932,152.0,151.99,0.03]
[1752004209647,8.20124736,152.0,151.99,0.03]
[1752004209830,14.30270491,152.0,151.99,0.03]
[1752004210557,20.11983932,152.0,151.99,0.03]
[1752004213946,38.76948818,152.0,151.99,0.03]
[1752004215951,0.28432314,151.98,151.94,33.48]
[1752004216129,18.64964886,151.99,151.93,0.03]
[1752004216130,5.81713441,151.95,151.93,33.51]
[1752004216450,5.81713441,151.94,151.93,0.03]
[1752004216652,5.81713441,151.94,151.93,33.51]
[1752004218633,5.81713441,151.94,151.93,0.03]
[1752004218832,5.81713441,151.94,151.93,33.51]
[1752004221034,5.81713441,151.94,151.93,33.49]
[1752004222052,6.57981313,151.98,151.93,33.49]
[1752004222253,5.81713441,151.94,151.93,33.49]
[1752004223851,12.39867975,151.94,151.93,0.03]
[1752004224555,5.81713441,151.95,151.93,0.03]
[1752004224854,3.72963839,151.95,151.93,0.03]
[1752004225037,3.72963839,151.95,151.94,33.46]
[1752004226636,10.31075059,151.95,151.93,0.03]
[1752004226838,3.72963839,151.94,151.93,0.03]
[1752004228237,10.31118373,151.94,151.93,0.03]
[1752004228957,12.41210357,151.94,151.93,0.03]
[1752004233953,38.41123735,151.96,151.93,0.03]
[1752004234137,38.41123735,151.96,151.94,33.44]
[1752004234333,164.00856328,151.99,151.94,33.44]
[1752004234559,5.83055823,151.96,151.94,33.44]
[1752004235756,12.41133466,151.96,151.94,33.44]
[1752004236658,5.83055823,151.95,151.94,33.44]
[1752004238450,6.58077643,151.96,151.94,33.44]
[1752004238651,5.83055823,151.95,151.94,33.44]
[1752004242668,12.41167043,151.95,151.94,33.44]
[1752004245163,5.83055823,151.95,151.94,33.44]
[1752004245361,0.06,151.99,151.94,33.44]
[1752004245672,5.89055823,151.99,151.95,5.83055823]
[1752004246245,13.20678529,151.99,151.95,5.83055823]
[1752004247154,19.78632199,151.99,151.95,5.83055823]
[1752004247346,12.47009493,151.99,151.95,5.83055823]
[1752004249080,12.47009493,151.99,151.94,33.44]
[1752004249285,13.14726879,151.98,151.94,33.44]
[1752004249449,13.14726879,151.98,151.94,39.27055823]
[1752004249950,13.14726879,151.98,151.94,39.66675823]
[1752004250774,13.14726879,151.98,151.94,33.8362]
[1752004251071,13.14726879,151.98,151.94,39.66675823]
[1752004252069,19.72715974,151.98,151.94,46.24822356]
[1752004252372,12.41044918,151.98,151.94,39.66675823]
[1752004253374,5.83055823,151.97,151.94,33.8362]
[1752004254384,6.57989095,151.98,151.94,33.8362]
[1752004254555,5.83055823,151.96,151.94,33.8362]
[1752004255478,12.41105374,151.97,151.94,33.8362]
[1752004256983,5.83055823,151.96,151.94,0.3962]
[1752004257188,5.83055823,151.95,151.94,33.7962]
[1752004257348,5.83055823,151.95,151.94,0.3962]
[1752004257550,5.83055823,151.95,151.94,33.7962]
[1752004257752,13.15623367,151.95,151.94,0.3962]
[1752004257954,5.83055823,151.95,151.94,0.3962]
[1752004258771,12.41167043,151.95,151.94,0.3962]
[1752004259157,12.41167043,151.95,151.94,33.7962]
[1752004261306,12.41167043,151.95,151.94,0.3962]
[1752004261787,19.73842515,151.95,151.94,0.3962]
[1752004266357,38.38807401,151.95,151.94,0.3962]
[1752004266570,192.43397199,151.94,151.93,1e-08]
[1752004266875,193.40734317,151.94,151.93,1e-08]
[1752004268168,199.98888851,151.94,151.93,1e-08]
[1752004268976,188.32777205,151.94,151.93,1e-08]
[1752004269181,193.87400714,151.94,151.93,1e-08]
[1752004270098,169.39380005,151.94,151.93,1e-08]
[1752004270301,175.22435828,151.94,151.93,1e-08]
[1752004274495,201.22435828,151.94,151.93,1e-08]
[1752004274878,194.76345828,151.94,151.93,1e-08]
[1752004275098,193.23885828,151.94,151.93,1e-08]
[1752004281703,187.40830005,151.94,151.93,1e-08]
[1752004281908,32.58154534,151.94,151.93,1e-08]
[1752004282092,12.41184942,151.95,151.93,1e-08]
[1752004283500,5.83055823,151.94,151.93,1e-08]
[1752004285707,12.41210357,151.94,151.93,1e-08]
[1752004286184,12.47210357,151.94,151.93,1e-08]
[1752004287621,45.7706152,151.94,151.93,1e-08]
[1752004298940,64.7045872,151.94,151.93,1e-08]
[1752004302130,77.95514543,151.94,151.93,1e-08]
[1752004302322,79.51914543,151.94,151.93,1e-08]
[1752004302714,89.51914543,151.94,151.93,1e-08]
[1752004302911,18.64964886,151.9,151.84,0.03]
[1752004303114,5.83055823,151.87,151.84,0.03]
[1752004303825,12.41550088,151.87,151.84,0.03]
[1752004307036,6.58494265,151.87,151.84,5.86055823]
[1752004307334,6.5834374,151.9,151.86,5.83055823]
[1752004307512,6.5834374,151.9,151.87,5.83055823]
[1752004307922,13.8993442,151.9,151.87,5.83055823]
[1752004308935,13.8993442,151.9,151.88,5.83055823]
[1752004309232,6.5834374,151.9,151.88,5.83055823]
[1752004309434,13.90092225,151.91,151.88,5.83055823]
[1752004311226,19.73148048,151.91,151.87,5.83055823]
[1752004311412,12.41360841,151.91,151.87,5.83055823]
[1752004318029,6.58305018,151.91,151.88,5.83055823]
[1752004318230,13.90371055,151.92,151.86,8.12876267]
[1752004318418,12.41315873,151.92,151.88,5.83055823]
[1752004319422,6.5826005,151.92,151.88,5.83055823]
[1752004319734,19.7348363,151.92,151.88,5.83055823]
[1752004319934,12.41315873,151.92,151.87,6.58442887]
[1752004320142,12.41315873,151.92,151.88,5.83055823]
[1752004323146,147.5,151.93,151.88,6.5840947]
[1752004323340,147.5,151.93,151.9,5.83055823]
[1752004323523,147.5,151.93,151.86,8.12860796]
[1752004323524,5.83055823,151.92,151.86,8.12860796]
[1752004323723,5.83055823,151.91,151.87,5.83055823]
[1752004323937,13.15099574,151.92,151.87,5.83055823]
[1752004324249,13.15099574,151.92,151.88,5.83055823]
[1752004324827,12.41340333,151.91,151.86,1.5438]
[1752004325139,19.73384084,151.91,151.87,5.83055823]
[1752004325346,6.5828451,151.91,151.88,5.83055823]
[1752004325847,19.73198046,151.91,151.87,5.83055823]
[1752004326046,12.41340333,151.91,151.87,5.83055823]
[1752004326543,6.5828451,151.91,151.87,5.83055823]
[1752004326841,12.41340333,151.91,151.87,5.83055823]
[1752004327049,7.32179554,151.9,151.86,5.83055823]
[1752004327565,13.90531526,151.9,151.86,5.83055823]
[1752004327846,19.73587349,151.9,151.86,5.83055823]
[1752004328145,12.41407795,151.9,151.86,5.83055823]
[1752004328650,6.58351972,151.9,151.86,5.83055823]
[1752004329139,13.90723972,151.9,151.86,5.83055823]
[1752004329451,13.90723972,151.9,151.87,0.03]
[1752004329828,19.73779795,151.9,151.87,0.03]
[1752004330141,5.83055823,151.89,151.87,0.03]
[1752004330445,5.83055823,151.88,151.87,0.03]
[1752004331741,26.03110709,151.88,151.87,0.03]
[1752004331926,39.94119886,151.88,151.87,0.03]
[1752004332547,40.225522,151.88,151.87,0.03]
[1752004337152,13.91009177,151.88,151.87,0.03]
[1752004337353,19.74065,151.88,151.87,0.03]
[1752004342044,13.91009177,151.88,151.87,0.03]
[1752004342236,19.74065,151.88,151.87,0.03]
[1752004342667,13.91009177,151.88,151.87,0.03]
[1752004342953,6.58414537,151.88,151.87,0.03]
[1752004344164,12.4147036,151.88,151.87,0.03]
[1752004348746,31.06435246,151.88,151.87,0.03]
[1752004348952,38.37882134,151.88,151.87,0.03]
[1752004356174,13.89861425,151.88,151.87,0.03]
[1752004356371,6.58414537,151.88,151.87,0.03]
[1752004356550,13.89858818,151.88,151.87,0.03]
[1752004356946,19.72914641,151.88,151.87,0.03]
[1752004357154,38.37879527,151.88,151.87,0.03]
[1752004357978,38.66311841,151.88,151.87,0.03]
[1752004358145,5.83055823,151.85,151.84,0.03]
[1752004359372,12.41600439,151.85,151.84,0.03]
[1752004360670,25.23466137,151.86,151.84,0.03]